[Event "*** Titled Tuesday Blitz"]
[Site "Chess.com"]
[Date "2020.05.26"]
[Round "10"]
[White "Chess_Boxer123"]
[Black "Slovak_fighter2000"]
[Result "1-0"]
[WhiteElo "2693"]
[BlackElo "2479"]
[TimeControl "180+1"]
[EndTime "12:01:04 PDT"]
[Termination "Chess_Boxer123 won by resignation"]

1. e4 {[%clk 0:03:00.9]} 1... c5 {[%clk 0:02:59.9]} 2. Nf3 {[%clk 0:03:00.9]}
2... e6 {[%clk 0:02:59.6]} 3. d4 {[%clk 0:02:56.7]} 3... cxd4 {[%clk 0:03:00.5]}
4. c3 {[%clk 0:02:57]} 4... d3 {[%clk 0:02:59.7]} 5. Bxd3 {[%clk 0:02:56.8]}
5... d6 {[%clk 0:02:59.3]} 6. c4 {[%clk 0:02:56.9]} 6... Nf6 {[%clk 0:02:59.2]}
7. O-O {[%clk 0:02:57]} 7... Be7 {[%clk 0:02:58.7]} 8. Nc3 {[%clk 0:02:57.2]}
8... a6 {[%clk 0:02:58.7]} 9. h3 {[%clk 0:02:57.5]} 9... b6 {[%clk 0:02:58.1]}
10. Bf4 {[%clk 0:02:57.5]} 10... Bb7 {[%clk 0:02:56.9]} 11. Qe2 {[%clk
0:02:57.9]} 11... O-O {[%clk 0:02:55.8]} 12. Rfd1 {[%clk 0:02:58]} 12... Nbd7
{[%clk 0:02:50.2]} 13. Rac1 {[%clk 0:02:58.1]} 13... Qc7 {[%clk 0:02:49.1]} 14.
b3 {[%clk 0:02:57.6]} 14... Rac8 {[%clk 0:02:48.2]} 15. Bb1 {[%clk 0:02:57.6]}
15... Qb8 {[%clk 0:02:47.3]} 16. Qd2 {[%clk 0:02:54]} 16... Ne5 {[%clk
0:02:40.6]} 17. Nxe5 {[%clk 0:02:47]} 17... dxe5 {[%clk 0:02:41.5]} 18. Be3
{[%clk 0:02:47.3]} 18... Rfd8 {[%clk 0:02:32]} 19. Qb2 {[%clk 0:02:47.1]} 19...
Bc5 {[%clk 0:02:30.9]} 20. Bxc5 {[%clk 0:02:46.8]} 20... bxc5 {[%clk 0:02:29.7]}
21. f3 {[%clk 0:02:44.5]} 21... Rd4 {[%clk 0:02:28.2]} 22. Ne2 {[%clk
0:02:44.7]} 22... Nh5 {[%clk 0:02:21.3]} 23. g4 {[%clk 0:02:32.6]} 23... Nf6
{[%clk 0:02:15.4]} 24. Nxd4 {[%clk 0:02:31.7]} 24... exd4 {[%clk 0:02:16.3]} 25.
b4 {[%clk 0:02:24.5]} 25... Qf4 {[%clk 0:02:00.3]} 26. Qf2 {[%clk 0:02:20.7]}
26... e5 {[%clk 0:01:56.2]} 27. a3 {[%clk 0:02:15]} 27... h6 {[%clk 0:01:41.9]}
28. Bd3 {[%clk 0:02:14.1]} 28... Nh7 {[%clk 0:01:35.4]} 29. Kg2 {[%clk
0:02:12.9]} 29... g6 {[%clk 0:01:32.5]} 30. Rc2 {[%clk 0:02:12.6]} 30... f5
{[%clk 0:01:23]} 31. Qg3 {[%clk 0:02:11.7]} 31... fxe4 {[%clk 0:01:09.6]} 32.
Qxf4 {[%clk 0:02:11]} 32... exf4 {[%clk 0:01:06.3]} 33. Bxe4 {[%clk 0:02:09.9]}
33... Bxe4 {[%clk 0:01:04.9]} 34. fxe4 {[%clk 0:02:09.8]} 34... Ng5 {[%clk
0:01:00.7]} 35. bxc5 {[%clk 0:02:08.8]} 35... Rxc5 {[%clk 0:00:53.7]} 36. Rxd4
{[%clk 0:02:08.6]} 36... Re5 {[%clk 0:00:46.9]} 37. c5 {[%clk 0:02:05.9]} 37...
Ne6 {[%clk 0:00:44.5]} 38. Rd5 {[%clk 0:01:57.3]} 38... Rxe4 {[%clk 0:00:43.8]}
39. c6 {[%clk 0:01:57.4]} 39... f3+ {[%clk 0:00:33.8]} 40. Kxf3 {[%clk
0:01:56.2]} 40... Rf4+ {[%clk 0:00:34]} 41. Kg3 {[%clk 0:01:55.6]} 41... Rf7
{[%clk 0:00:32.5]} 42. Rd7 {[%clk 0:01:53.5]} 1-0

[Event "*** Titled Tuesday Blitz"]
[Site "Chess.com"]
[Date "2020.05.26"]
[Round "10"]
[White "Beca95"]
[Black "AlexOstrovskiy"]
[Result "1-0"]
[WhiteElo "2853"]
[BlackElo "2623"]
[TimeControl "180+1"]
[EndTime "12:01:06 PDT"]
[Termination "Beca95 won by resignation"]

1. e4 {[%clk 0:03:00.9]} 1... c6 {[%clk 0:03:00]} 2. d4 {[%clk 0:03:00.4]} 2...
d5 {[%clk 0:03:00.9]} 3. e5 {[%clk 0:03:00.9]} 3... c5 {[%clk 0:03:01.3]} 4.
dxc5 {[%clk 0:02:59.9]} 4... e6 {[%clk 0:03:01.1]} 5. Qg4 {[%clk 0:02:52.9]}
5... h5 {[%clk 0:03:00]} 6. Qg3 {[%clk 0:02:52.5]} 6... h4 {[%clk 0:02:57.6]} 7.
Qg4 {[%clk 0:02:52.1]} 7... Nh6 {[%clk 0:02:56.5]} 8. Qf4 {[%clk 0:02:48]} 8...
Bxc5 {[%clk 0:02:51.3]} 9. Bd3 {[%clk 0:02:44.5]} 9... Nc6 {[%clk 0:02:33.7]}
10. a3 {[%clk 0:02:41.5]} 10... g5 {[%clk 0:02:14.3]} 11. Qxg5 {[%clk
0:02:29.7]} 11... Qxg5 {[%clk 0:02:13.7]} 12. Bxg5 {[%clk 0:02:30.1]} 12... Nxe5
{[%clk 0:02:14.3]} 13. Bxh4 {[%clk 0:02:28.5]} 13... Nxd3+ {[%clk 0:01:45.5]}
14. cxd3 {[%clk 0:02:29.4]} 14... Bd4 {[%clk 0:01:46.2]} 15. Nc3 {[%clk
0:02:28.2]} 15... Nf5 {[%clk 0:01:37]} 16. Bg5 {[%clk 0:02:23.8]} 16... Bd7
{[%clk 0:01:29.8]} 17. Nf3 {[%clk 0:02:23.3]} 17... Bg7 {[%clk 0:01:30.3]} 18.
O-O-O {[%clk 0:02:10.7]} 18... Rc8 {[%clk 0:01:28.4]} 19. d4 {[%clk 0:02:10.8]}
19... Rc4 {[%clk 0:01:04.1]} 20. Be3 {[%clk 0:02:10]} 20... b5 {[%clk
0:01:02.6]} 21. Kb1 {[%clk 0:02:09]} 21... b4 {[%clk 0:00:59.3]} 22. axb4 {[%clk
0:02:09.9]} 22... Rxb4 {[%clk 0:01:00.2]} 23. g4 {[%clk 0:02:08]} 23... Nd6
{[%clk 0:00:57.3]} 24. Rhe1 {[%clk 0:02:06.1]} 24... Nc4 {[%clk 0:00:50.6]} 25.
Bc1 {[%clk 0:02:05.9]} 25... O-O {[%clk 0:00:48.8]} 26. Ne5 {[%clk 0:02:01.1]}
26... Nxe5 {[%clk 0:00:45]} 27. dxe5 {[%clk 0:02:02]} 27... Rxg4 {[%clk
0:00:45.6]} 28. f4 {[%clk 0:02:01.4]} 28... Rb8 {[%clk 0:00:38.6]} 29. Rg1
{[%clk 0:01:56.3]} 29... Rh4 {[%clk 0:00:32.9]} 30. Rg2 {[%clk 0:01:54.7]} 30...
Kf8 {[%clk 0:00:32.9]} 31. b3 {[%clk 0:01:54.8]} 31... Rxb3+ {[%clk 0:00:27.5]}
32. Kc2 {[%clk 0:01:54.6]} 32... Rxc3+ {[%clk 0:00:16.5]} 33. Kxc3 {[%clk
0:01:54]} 33... Bh6 {[%clk 0:00:14.4]} 34. Ba3+ {[%clk 0:01:51.9]} 1-0

[Event "*** Titled Tuesday Blitz"]
[Site "Chess.com"]
[Date "2020.05.26"]
[Round "10"]
[White "seastar"]
[Black "Iskusnyh"]
[Result "0-1"]
[WhiteElo "1965"]
[BlackElo "2507"]
[TimeControl "180+1"]
[EndTime "12:01:06 PDT"]
[Termination "Iskusnyh won on time"]

1. d4 {[%clk 0:00:51.8]} 1... d5 {[%clk 0:02:56.2]} 2. c4 {[%clk 0:00:50.9]}
2... c6 {[%clk 0:02:55.4]} 3. Nc3 {[%clk 0:00:50.8]} 3... Nf6 {[%clk 0:02:55.3]}
4. cxd5 {[%clk 0:00:50.9]} 4... cxd5 {[%clk 0:02:54.7]} 5. Bf4 {[%clk
0:00:49.6]} 5... Nc6 {[%clk 0:02:54.3]} 6. e3 {[%clk 0:00:49.8]} 6... a6 {[%clk
0:02:53.3]} 7. Bd3 {[%clk 0:00:47.7]} 7... Bg4 {[%clk 0:02:52.5]} 8. Qb3 {[%clk
0:00:42.5]} 8... Na5 {[%clk 0:02:51.5]} 9. Qa4+ {[%clk 0:00:35.8]} 9... b5
{[%clk 0:02:46.4]} 10. Qc2 {[%clk 0:00:23.5]} 10... Rc8 {[%clk 0:02:42.9]} 11.
a3 {[%clk 0:00:22.2]} 11... e6 {[%clk 0:02:32.9]} 12. f3 {[%clk 0:00:19.2]}
12... Bh5 {[%clk 0:02:31.9]} 13. Nge2 {[%clk 0:00:17.9]} 13... Bg6 {[%clk
0:02:15.6]} 14. O-O {[%clk 0:00:17.1]} 14... Nc4 {[%clk 0:02:09.8]} 15. Rac1
{[%clk 0:00:12.6]} 15... Bd6 {[%clk 0:02:08.8]} 16. Bxd6 {[%clk 0:00:09.9]}
16... Qxd6 {[%clk 0:02:08.4]} 17. Kf2 {[%clk 0:00:07.6]} 17... Qxh2 {[%clk
0:01:46.4]} 18. Rh1 {[%clk 0:00:05.3]} 18... Qd6 {[%clk 0:01:41.3]} 19. Bxg6
{[%clk 0:00:03.7]} 19... fxg6 {[%clk 0:01:40.4]} 20. b3 {[%clk 0:00:02.4]} 20...
O-O {[%clk 0:01:30.3]} 21. bxc4 {[%clk 0:00:01.1]} 21... Ng4+ {[%clk 0:01:30.2]}
0-1

[Event "*** Titled Tuesday Blitz"]
[Site "Chess.com"]
[Date "2020.05.26"]
[Round "10"]
[White "BikingBrian"]
[Black "realmadridtv"]
[Result "1-0"]
[WhiteElo "2282"]
[BlackElo "2431"]
[TimeControl "180+1"]
[EndTime "12:01:07 PDT"]
[Termination "BikingBrian won by resignation"]

1. d4 {[%clk 0:03:00.9]} 1... Nf6 {[%clk 0:02:58.9]} 2. Bg5 {[%clk 0:03:00.3]}
2... d5 {[%clk 0:02:57.4]} 3. Nd2 {[%clk 0:02:59.5]} 3... Bf5 {[%clk 0:02:55.2]}
4. e3 {[%clk 0:02:57.7]} 4... c6 {[%clk 0:02:55.1]} 5. c4 {[%clk 0:02:56.9]}
5... e6 {[%clk 0:02:53.7]} 6. Qb3 {[%clk 0:02:53.4]} 6... Qb6 {[%clk 0:02:50]}
7. c5 {[%clk 0:02:53.6]} 7... Qxb3 {[%clk 0:02:49.6]} 8. axb3 {[%clk 0:02:52.6]}
8... Nbd7 {[%clk 0:02:48.4]} 9. b4 {[%clk 0:02:51.5]} 9... h6 {[%clk 0:02:35.6]}
10. Bf4 {[%clk 0:02:43.7]} 10... g5 {[%clk 0:02:34.5]} 11. Bg3 {[%clk
0:02:41.6]} 11... Nh5 {[%clk 0:02:31.8]} 12. Ngf3 {[%clk 0:02:29.3]} 12... Be7
{[%clk 0:02:24.7]} 13. Be2 {[%clk 0:02:22.5]} 13... a6 {[%clk 0:02:21.3]} 14. b5
{[%clk 0:02:19.1]} 14... cxb5 {[%clk 0:02:19.4]} 15. Bxb5 {[%clk 0:02:17]} 15...
Nxg3 {[%clk 0:02:19]} 16. hxg3 {[%clk 0:02:14.6]} 16... O-O-O {[%clk 0:02:19]}
17. Be2 {[%clk 0:02:06.4]} 17... e5 {[%clk 0:02:08.6]} 18. O-O {[%clk
0:01:51.9]} 18... exd4 {[%clk 0:01:59.4]} 19. Nxd4 {[%clk 0:01:43.3]} 19... Bg6
{[%clk 0:01:54.5]} 20. c6 {[%clk 0:01:38.4]} 20... bxc6 {[%clk 0:01:54.7]} 21.
Nxc6 {[%clk 0:01:38.2]} 21... Rde8 {[%clk 0:01:54.9]} 22. Rfc1 {[%clk
0:01:36.8]} 22... Kb7 {[%clk 0:01:49.7]} 23. Bxa6+ {[%clk 0:01:36.3]} 23... Kb6
{[%clk 0:01:50.1]} 24. Nd4 {[%clk 0:01:19.6]} 24... Nc5 {[%clk 0:01:47.7]} 25.
b4 {[%clk 0:01:16]} 25... Nxa6 {[%clk 0:01:42.8]} 26. Rc6+ {[%clk 0:01:15.6]}
26... Kb7 {[%clk 0:01:42.2]} 27. Raxa6 {[%clk 0:01:15.3]} 27... Bd8 {[%clk
0:01:36.1]} 28. N2b3 {[%clk 0:01:08.5]} 28... Bc7 {[%clk 0:01:25.3]} 29. Nb5
{[%clk 0:00:54.6]} 29... Re7 {[%clk 0:01:13.6]} 30. Nc5+ {[%clk 0:00:50.7]}
30... Kb8 {[%clk 0:01:14]} 31. Nxc7 {[%clk 0:00:38.4]} 31... Rxc7 {[%clk
0:01:14.2]} 32. Rcb6+ {[%clk 0:00:37.5]} 1-0

[Event "*** Titled Tuesday Blitz"]
[Site "Chess.com"]
[Date "2020.05.26"]
[Round "10"]
[White "MightyGMpretender"]
[Black "ChristianAlm"]
[Result "1-0"]
[WhiteElo "2551"]
[BlackElo "2402"]
[TimeControl "180+1"]
[EndTime "12:01:08 PDT"]
[Termination "MightyGMpretender won by resignation"]

1. Nf3 {[%clk 0:03:00.9]} 1... Nf6 {[%clk 0:02:57.5]} 2. c4 {[%clk 0:03:01.2]}
2... c5 {[%clk 0:02:55.2]} 3. Nc3 {[%clk 0:02:59.8]} 3... Nc6 {[%clk 0:02:53.5]}
4. e3 {[%clk 0:02:58.2]} 4... g6 {[%clk 0:02:51.4]} 5. d4 {[%clk 0:02:57.9]}
5... cxd4 {[%clk 0:02:52.3]} 6. exd4 {[%clk 0:02:58.8]} 6... d5 {[%clk
0:02:52.9]} 7. cxd5 {[%clk 0:02:59.7]} 7... Nxd5 {[%clk 0:02:53.3]} 8. Bc4
{[%clk 0:03:00.2]} 8... e6 {[%clk 0:02:48.9]} 9. Bg5 {[%clk 0:02:54.1]} 9... Be7
{[%clk 0:02:46.6]} 10. Bh6 {[%clk 0:02:53.9]} 10... Nxc3 {[%clk 0:02:18.7]} 11.
bxc3 {[%clk 0:02:52.9]} 11... Qa5 {[%clk 0:02:18.8]} 12. O-O {[%clk 0:02:50.5]}
12... Qh5 {[%clk 0:02:17.7]} 13. Qd2 {[%clk 0:02:46.5]} 13... Bd7 {[%clk
0:02:08.6]} 14. d5 {[%clk 0:02:42.7]} 14... exd5 {[%clk 0:02:07.7]} 15. Bxd5
{[%clk 0:02:42.5]} 15... O-O-O {[%clk 0:02:06.3]} 16. Be3 {[%clk 0:02:35.5]}
16... Be6 {[%clk 0:01:42.7]} 17. Bxe6+ {[%clk 0:02:32.8]} 17... fxe6 {[%clk
0:01:39.4]} 18. Qc2 {[%clk 0:02:33.2]} 18... Rhf8 {[%clk 0:01:31.6]} 19. Qb3
{[%clk 0:02:24.1]} 19... Rd5 {[%clk 0:01:20.8]} 20. Rab1 {[%clk 0:02:21.7]}
20... Na5 {[%clk 0:01:10.4]} 21. Qa4 {[%clk 0:02:07.1]} 21... Nc6 {[%clk
0:00:58.1]} 22. Nd4 {[%clk 0:02:05]} 22... Bd6 {[%clk 0:00:52.9]} 23. g3 {[%clk
0:02:03.3]} 23... Qh3 {[%clk 0:00:19.9]} 24. Nxc6 {[%clk 0:01:43.2]} 24... Rh5
{[%clk 0:00:19.3]} 25. Nxa7+ {[%clk 0:01:34.3]} 25... Kb8 {[%clk 0:00:15.3]} 26.
Rxb7+ {[%clk 0:01:33.6]} 26... Kxb7 {[%clk 0:00:16.2]} 27. Qc6+ {[%clk
0:01:33.1]} 27... Kb8 {[%clk 0:00:12.6]} 28. Rb1+ {[%clk 0:01:33.6]} 1-0

[Event "*** Titled Tuesday Blitz"]
[Site "Chess.com"]
[Date "2020.05.26"]
[Round "10"]
[White "InitiatingASC"]
[Black "ferdipy"]
[Result "1-0"]
[WhiteElo "2392"]
[BlackElo "2268"]
[TimeControl "180+1"]
[EndTime "12:01:08 PDT"]
[Termination "InitiatingASC won by resignation"]

1. Nf3 {[%clk 0:03:00.9]} 1... Nf6 {[%clk 0:02:53.1]} 2. b3 {[%clk 0:03:01.3]}
2... e6 {[%clk 0:02:52.6]} 3. Bb2 {[%clk 0:03:01.9]} 3... d5 {[%clk 0:02:53.5]}
4. e3 {[%clk 0:03:01.6]} 4... Be7 {[%clk 0:02:54.2]} 5. c4 {[%clk 0:03:01.4]}
5... O-O {[%clk 0:02:55.1]} 6. cxd5 {[%clk 0:03:01.7]} 6... exd5 {[%clk
0:02:55.8]} 7. Be2 {[%clk 0:03:02.3]} 7... c6 {[%clk 0:02:56.7]} 8. O-O {[%clk
0:03:02.8]} 8... Bg4 {[%clk 0:02:57]} 9. d3 {[%clk 0:03:03.5]} 9... Nbd7 {[%clk
0:02:57.5]} 10. Nbd2 {[%clk 0:03:04]} 10... Bd6 {[%clk 0:02:57.9]} 11. Rc1
{[%clk 0:03:01.8]} 11... Qe7 {[%clk 0:02:57.6]} 12. Qc2 {[%clk 0:03:01.2]} 12...
Rfe8 {[%clk 0:02:54]} 13. Rfe1 {[%clk 0:03:01.3]} 13... Nf8 {[%clk 0:02:48.3]}
14. Qb1 {[%clk 0:02:45.5]} 14... Ng6 {[%clk 0:02:44.2]} 15. Qa1 {[%clk
0:02:45.2]} 15... a5 {[%clk 0:01:40.8]} 16. a3 {[%clk 0:02:42.3]} 16... Bc7
{[%clk 0:01:37.8]} 17. Nf1 {[%clk 0:02:32.8]} 17... Qd6 {[%clk 0:01:37.5]} 18.
Ng3 {[%clk 0:02:31.2]} 18... Nh5 {[%clk 0:01:35]} 19. Rc2 {[%clk 0:01:45.7]}
19... f6 {[%clk 0:01:32.2]} 20. Rd2 {[%clk 0:01:42.2]} 20... Nxg3 {[%clk
0:01:20.3]} 21. hxg3 {[%clk 0:01:43.1]} 21... b5 {[%clk 0:01:19.9]} 22. Nd4
{[%clk 0:01:38.8]} 22... Bxe2 {[%clk 0:01:06.5]} 23. Rdxe2 {[%clk 0:01:39.7]}
23... Re7 {[%clk 0:00:58.1]} 24. Nf5 {[%clk 0:01:37.6]} 24... Qd7 {[%clk
0:00:58.5]} 25. Nxe7+ {[%clk 0:01:37.6]} 25... Qxe7 {[%clk 0:00:59.4]} 26. e4
{[%clk 0:01:37.7]} 26... dxe4 {[%clk 0:00:58.3]} 27. Rxe4 {[%clk 0:01:33.3]}
27... Qd7 {[%clk 0:00:54.8]} 28. Qc1 {[%clk 0:01:10.6]} 28... Bd6 {[%clk
0:00:50.2]} 29. Qe3 {[%clk 0:01:06.5]} 29... Bf8 {[%clk 0:00:43.1]} 30. Re8
{[%clk 0:01:02.4]} 30... Qd5 {[%clk 0:00:43.5]} 1-0

[Event "*** Titled Tuesday Blitz"]
[Site "Chess.com"]
[Date "2020.05.26"]
[Round "10"]
[White "MFBerna"]
[Black "Semetey"]
[Result "1-0"]
[WhiteElo "2404"]
[BlackElo "2516"]
[TimeControl "180+1"]
[EndTime "12:01:09 PDT"]
[Termination "MFBerna won by resignation"]

1. d4 {[%clk 0:03:00.9]} 1... Nf6 {[%clk 0:02:59]} 2. Nf3 {[%clk 0:03:00.6]}
2... e6 {[%clk 0:02:57.6]} 3. g3 {[%clk 0:03:00.8]} 3... b6 {[%clk 0:02:57.5]}
4. Bg2 {[%clk 0:03:00.6]} 4... Bb7 {[%clk 0:02:57.9]} 5. O-O {[%clk 0:03:01]}
5... Be7 {[%clk 0:02:58.2]} 6. c4 {[%clk 0:03:01.3]} 6... O-O {[%clk 0:02:58]}
7. Nc3 {[%clk 0:03:00.9]} 7... d5 {[%clk 0:02:57.8]} 8. Ne5 {[%clk 0:03:00.2]}
8... Nbd7 {[%clk 0:02:58]} 9. cxd5 {[%clk 0:02:56.8]} 9... Nxd5 {[%clk
0:02:54.1]} 10. Nxd5 {[%clk 0:02:54.2]} 10... exd5 {[%clk 0:02:52.6]} 11. Bf4
{[%clk 0:02:52.2]} 11... Nxe5 {[%clk 0:02:49.7]} 12. Bxe5 {[%clk 0:02:51.6]}
12... Bd6 {[%clk 0:02:47.8]} 13. Bxd6 {[%clk 0:02:46.6]} 13... Qxd6 {[%clk
0:02:47.5]} 14. Rc1 {[%clk 0:02:41.8]} 14... c6 {[%clk 0:02:37.6]} 15. e3 {[%clk
0:02:31.2]} 15... Rfe8 {[%clk 0:02:36.3]} 16. Rc3 {[%clk 0:02:27.8]} 16... Rac8
{[%clk 0:02:29]} 17. Qa4 {[%clk 0:02:24.3]} 17... a5 {[%clk 0:02:26.8]} 18. a3
{[%clk 0:02:15.5]} 18... h5 {[%clk 0:02:09.5]} 19. h4 {[%clk 0:02:13.5]} 19...
Ba6 {[%clk 0:01:56.8]} 20. Rfc1 {[%clk 0:02:12.9]} 20... Re6 {[%clk 0:01:49.2]}
21. Bh3 {[%clk 0:02:06.4]} 21... Bb7 {[%clk 0:01:38.9]} 22. b4 {[%clk
0:01:50.3]} 22... axb4 {[%clk 0:01:37.2]} 23. Qxb4 {[%clk 0:01:41.3]} 23... Ra8
{[%clk 0:01:10.5]} 24. Bxe6 {[%clk 0:01:35.2]} 24... Qxb4 {[%clk 0:01:06.4]} 25.
Bxf7+ {[%clk 0:01:32.1]} 25... Kxf7 {[%clk 0:01:07.3]} 26. axb4 {[%clk
0:01:32.5]} 26... b5 {[%clk 0:01:06.3]} 27. Rb1 {[%clk 0:01:09.7]} 27... Ke6
{[%clk 0:01:04.9]} 28. Rcc1 {[%clk 0:01:08.9]} 28... Ra4 {[%clk 0:01:04.7]} 29.
Ra1 {[%clk 0:01:00.1]} 29... Rxb4 {[%clk 0:00:54.9]} 30. Ra7 {[%clk 0:01:00]}
30... Bc8 {[%clk 0:00:53.1]} 31. Rxc6+ {[%clk 0:00:59.3]} 1-0

[Event "*** Titled Tuesday Blitz"]
[Site "Chess.com"]
[Date "2020.05.26"]
[Round "10"]
[White "Aguiar94"]
[Black "NotFischer"]
[Result "1-0"]
[WhiteElo "2437"]
[BlackElo "2131"]
[TimeControl "180+1"]
[EndTime "12:01:10 PDT"]
[Termination "Aguiar94 won by resignation"]

1. e4 {[%clk 0:03:00.9]} 1... d5 {[%clk 0:02:59.4]} 2. exd5 {[%clk 0:03:00.6]}
2... Nf6 {[%clk 0:02:59.9]} 3. Nf3 {[%clk 0:02:59.1]} 3... Bg4 {[%clk
0:02:58.9]} 4. Be2 {[%clk 0:02:55.8]} 4... Qxd5 {[%clk 0:02:58.2]} 5. O-O {[%clk
0:02:56.2]} 5... Nc6 {[%clk 0:02:58.2]} 6. Nc3 {[%clk 0:02:54.8]} 6... Qh5
{[%clk 0:02:57.1]} 7. h3 {[%clk 0:02:52.8]} 7... Bxf3 {[%clk 0:02:47]} 8. Bxf3
{[%clk 0:02:53.7]} 8... Qg6 {[%clk 0:02:45.2]} 9. d4 {[%clk 0:02:50.7]} 9...
O-O-O {[%clk 0:02:44.4]} 10. Bxc6 {[%clk 0:02:50.1]} 10... bxc6 {[%clk
0:02:45.3]} 11. Qf3 {[%clk 0:02:48.4]} 11... Nd5 {[%clk 0:02:43.2]} 12. Ne4
{[%clk 0:02:41.4]} 12... e6 {[%clk 0:02:27.6]} 13. a3 {[%clk 0:02:26.3]} 13...
Kd7 {[%clk 0:02:24.6]} 14. c4 {[%clk 0:02:24.2]} 14... Nf6 {[%clk 0:02:20.7]}
15. Nc5+ {[%clk 0:02:20]} 15... Bxc5 {[%clk 0:02:17.5]} 16. dxc5 {[%clk
0:02:20.9]} 16... Qe4 {[%clk 0:02:17.5]} 17. Qc3 {[%clk 0:02:16.6]} 17... Ke7
{[%clk 0:02:06.9]} 18. Re1 {[%clk 0:01:56.8]} 18... Qd4 {[%clk 0:01:53.1]} 19.
Qa5 {[%clk 0:01:55.4]} 19... Rd7 {[%clk 0:01:49.1]} 20. Qa6 {[%clk 0:01:36.3]}
20... Qxc5 {[%clk 0:00:58.1]} 21. Be3 {[%clk 0:01:35.6]} 21... Qd6 {[%clk
0:00:53.4]} 22. Qa5 {[%clk 0:01:34.7]} 22... Ke8 {[%clk 0:00:35.3]} 23. Bc5
{[%clk 0:01:33.8]} 23... Qf4 {[%clk 0:00:20.8]} 24. Qxa7 {[%clk 0:01:28.8]}
24... Ne4 {[%clk 0:00:15.2]} 25. Qa8+ {[%clk 0:01:23.5]} 25... Rd8 {[%clk
0:00:14.1]} 26. Qxc6+ {[%clk 0:01:23.6]} 1-0

[Event "*** Titled Tuesday Blitz"]
[Site "Chess.com"]
[Date "2020.05.26"]
[Round "10"]
[White "latixxa"]
[Black "MNyuyu"]
[Result "0-1"]
[WhiteElo "2130"]
[BlackElo "2313"]
[TimeControl "180+1"]
[EndTime "12:01:17 PDT"]
[Termination "MNyuyu won by resignation"]

1. e4 {[%clk 0:03:00.9]} 1... d5 {[%clk 0:02:59.3]} 2. exd5 {[%clk 0:02:58.1]}
2... Qxd5 {[%clk 0:02:59.6]} 3. Nc3 {[%clk 0:02:58.5]} 3... Qd8 {[%clk
0:02:59.3]} 4. Nf3 {[%clk 0:02:57.9]} 4... Bg4 {[%clk 0:02:58.7]} 5. h3 {[%clk
0:02:56.4]} 5... Bh5 {[%clk 0:02:57.6]} 6. d4 {[%clk 0:02:56.1]} 6... c6 {[%clk
0:02:57.3]} 7. Bc4 {[%clk 0:02:55.2]} 7... e6 {[%clk 0:02:57]} 8. g4 {[%clk
0:02:55]} 8... Bg6 {[%clk 0:02:56.3]} 9. Ne5 {[%clk 0:02:55]} 9... Nd7 {[%clk
0:02:56.7]} 10. Qe2 {[%clk 0:02:51.7]} 10... Ngf6 {[%clk 0:02:55.1]} 11. h4
{[%clk 0:02:50.4]} 11... Bb4 {[%clk 0:02:53.2]} 12. Bd2 {[%clk 0:02:48.3]} 12...
Bxc3 {[%clk 0:02:51.6]} 13. Bxc3 {[%clk 0:02:47.8]} 13... Be4 {[%clk 0:02:51.4]}
14. f3 {[%clk 0:02:47.2]} 14... Bd5 {[%clk 0:02:50.9]} 15. Bxd5 {[%clk
0:02:45.7]} 15... Nxd5 {[%clk 0:02:48.5]} 16. Bd2 {[%clk 0:02:45.9]} 16... Nxe5
{[%clk 0:02:47.8]} 17. dxe5 {[%clk 0:02:44.7]} 17... Qb6 {[%clk 0:02:44.5]} 18.
O-O-O {[%clk 0:02:43.4]} 18... O-O-O {[%clk 0:02:43.6]} 19. a3 {[%clk
0:02:39.8]} 19... Rd7 {[%clk 0:02:40.7]} 20. h5 {[%clk 0:02:38]} 20... h6 {[%clk
0:02:39.2]} 21. f4 {[%clk 0:02:35.3]} 21... Rhd8 {[%clk 0:02:37.2]} 22. g5
{[%clk 0:02:33.2]} 22... Qc7 {[%clk 0:02:27.9]} 23. g6 {[%clk 0:02:28.2]} 23...
fxg6 {[%clk 0:02:26.3]} 24. hxg6 {[%clk 0:02:29.1]} 24... Ne7 {[%clk 0:02:25.6]}
25. Qc4 {[%clk 0:02:25.1]} 25... Rd5 {[%clk 0:02:25.2]} 26. Bb4 {[%clk
0:02:18.5]} 26... Rxd1+ {[%clk 0:02:13.8]} 27. Rxd1 {[%clk 0:02:19.4]} 27...
Rxd1+ {[%clk 0:02:13.1]} 28. Kxd1 {[%clk 0:02:20.3]} 28... Qd7+ {[%clk
0:02:13.1]} 29. Qd3 {[%clk 0:02:18.3]} 29... Nxg6 {[%clk 0:02:09.9]} 30. Bd6
{[%clk 0:02:09.3]} 30... Qf7 {[%clk 0:02:00.1]} 31. Qe4 {[%clk 0:02:00.8]} 31...
Qf5 {[%clk 0:01:43]} 32. Qxf5 {[%clk 0:01:59.6]} 32... exf5 {[%clk 0:01:42.2]}
33. e6 {[%clk 0:02:00]} 33... h5 {[%clk 0:01:37.4]} 34. Ke2 {[%clk 0:02:00.1]}
34... Kd8 {[%clk 0:01:35.1]} 35. Kf3 {[%clk 0:02:00.2]} 35... h4 {[%clk
0:01:32.9]} 36. c3 {[%clk 0:01:58.8]} 36... Ke8 {[%clk 0:01:32.4]} 37. b4 {[%clk
0:01:55.8]} 37... Nf8 {[%clk 0:01:31.2]} 38. e7 {[%clk 0:01:54.3]} 38... Ng6
{[%clk 0:01:28.8]} 39. c4 {[%clk 0:01:54.4]} 39... Nxe7 {[%clk 0:01:27.9]} 40.
b5 {[%clk 0:01:54.4]} 40... cxb5 {[%clk 0:01:27.3]} 41. cxb5 {[%clk 0:01:55.3]}
41... g6 {[%clk 0:01:23.8]} 42. a4 {[%clk 0:01:54.3]} 42... a6 {[%clk
0:01:22.6]} 43. bxa6 {[%clk 0:01:51]} 43... bxa6 {[%clk 0:01:22]} 44. a5 {[%clk
0:01:51]} 44... Kd7 {[%clk 0:01:21.1]} 45. Bb4 {[%clk 0:01:47.1]} 45... Nc6
{[%clk 0:01:20.2]} 46. Be1 {[%clk 0:01:46.5]} 46... Ke6 {[%clk 0:01:16.6]} 47.
Kg2 {[%clk 0:01:41.9]} 47... Kd5 {[%clk 0:01:15.7]} 48. Kh3 {[%clk 0:01:42.2]}
48... Ke4 {[%clk 0:01:15.5]} 49. Bd2 {[%clk 0:01:41.5]} 49... Nd4 {[%clk
0:01:07.9]} 50. Bc1 {[%clk 0:01:36]} 0-1